bitfinex-derivatives/quotes_SOLF0:USTF0_20220109
["timestamp","ask_amount","ask_price","bid_price","bid_amount"]
[1641696451100,27.66479,144.18,144.09,6.93818081]
[1641696451297,27.66479,144.18,144.12,6.93673696]
[1641696451499,14.67062812,144.21,144.12,6.93673696]
[1641696451696,14.67062812,144.21,144.15,6.93529371]
[1641696452097,27.66479,144.22,144.15,6.93529371]
[1641696452297,4.0,144.21,144.08,27.66479]
[1641696452496,4.0,144.2,144.09,6.93794013]
[1641696452695,11.057,144.2,144.09,6.93794013]
[1641696452897,13.29062951,144.2,144.09,6.93794013]
[1641696453296,27.66479,144.16,144.08,34.60321151]
[1641696453897,2.23362951,144.19,144.08,34.60321151]
[1641696454097,2.23362951,144.19,144.08,40.53921151]
[1641696454497,46.33541812,144.22,144.08,40.53921151]
[1641696454699,31.66479,144.22,144.09,2.65224854]
[1641696455100,4.0,144.21,144.09,2.65224854]
[1641696455302,27.66479,144.15,144.09,2.65224854]
[1641696455900,27.66479,144.15,144.08,27.66479]
[1641696458703,27.66479,144.15,144.08,31.66479]
[1641696458903,27.66479,144.17,144.09,4.0]
[1641696459303,27.66479,144.2,144.11,6.93721818]
[1641696459503,4.0,144.19,144.08,27.66479]
[1641696459903,39.40079,144.2,144.08,27.66479]
[1641696460104,35.40079,144.2,144.08,27.66479]
[1641696460308,2.23314366,144.19,144.08,27.66479]
[1641696460508,6.23314366,144.19,144.08,27.66479]
[1641696461409,27.66479,144.16,144.08,27.66479]
[1641696461608,35.56479,144.16,144.08,27.66479]
[1641696461808,35.56479,144.16,144.08,4.0]
[1641696467211,27.66479,144.16,144.08,4.0]
[1641696467416,27.66479,144.16,144.09,2.66067233]
[1641696468915,31.66479,144.16,144.09,2.66067233]
[1641696469115,4.0,144.14,144.09,2.66067233]
[1641696469315,27.66479,144.1,144.09,2.66067233]
[1641696469515,35.21379,144.1,144.09,2.66067233]
[1641696470316,35.21379,144.1,144.04,2.66067233]
[1641696471018,27.66479,144.1,144.04,2.66067233]
[1641696471715,33.01479,144.1,144.04,2.66067233]
[1641696474321,27.66479,144.1,144.04,2.66067233]
[1641696478325,81.32912812,144.15,144.04,12.98967233]
[1641696478928,81.32912812,144.15,144.04,8.98967233]
[1641696479428,108.99391812,144.15,144.05,27.66479]
[1641696479828,2.24541252,144.14,144.05,30.32546233]
[1641696480628,94.32329,144.15,144.05,30.32546233]
[1641696480831,94.32329,144.15,144.06,2.66067233]
[1641696481231,94.32329,144.15,144.06,9.60005681]
[1641696482229,94.32329,144.15,144.06,2.66067233]
[1641696482429,94.32329,144.15,144.07,2.66067233]
[1641696482629,4.0,144.14,144.07,2.66067233]
[1641696482831,4.0,144.12,144.07,2.66067233]
[1641696483230,5.768,144.14,144.05,2.66067233]
[1641696483231,4.0,144.08,144.05,2.66067233]
[1641696483431,55.32958,144.06,143.95,86.37487427]
[1641696484233,122.30668,144.06,143.95,27.66479]
[1641696484432,66.9771,144.06,143.95,27.66479]
[1641696484633,66.9771,144.06,143.97,6.94396222]
[1641696484832,14.67062812,144.08,143.97,17.55596222]
[1641696485233,84.51722812,144.1,143.97,17.55596222]
[1641696485532,27.66479,144.09,144.0,27.66479]
[1641696487332,4.0,144.08,143.97,6.94396222]
[1641696487532,31.66479,144.09,143.97,6.94396222]
[1641696487733,27.66479,144.09,143.97,6.94396222]
[1641696487933,27.66479,144.09,143.97,12.36196222]
[1641696488232,42.33541812,144.09,143.97,12.36196222]
[1641696489033,46.33541812,144.09,143.97,12.36196222]
[1641696489432,27.66479,144.06,143.97,12.36196222]
[1641696492435,27.66479,144.06,143.98,4.0]
[1641696492637,134.0733,144.1,144.02,4.0]
[1641696492836,14.67062812,144.11,144.02,4.0]
[1641696493237,14.67062812,144.11,144.0,4.0]
[1641696493439,14.67062812,144.11,144.02,27.66479]
[1641696493739,66.5178,144.13,144.02,27.66479]
[1641696494339,66.5178,144.13,144.03,6.94107031]
[1641696495341,66.5178,144.13,144.03,10.94107031]
[1641696495540,66.5178,144.13,144.06,6.93962526]
[1641696495740,80.38072812,144.15,144.06,6.93962526]
[1641696495941,14.67062812,144.15,144.06,6.93962526]
[1641696496441,97.26339,144.16,144.06,6.93962526]
[1641696496843,4.0,144.14,144.02,27.66479]
[1641696497141,4.0,144.14,144.0,34.60706498]
[1641696497543,27.66479,144.1,144.0,34.60706498]
[1641696498245,14.67062812,144.14,144.0,38.60706498]
[1641696498443,14.67062812,144.13,144.0,38.60706498]
[1641696499044,14.67062812,144.13,144.0,34.60706498]
[1641696499444,42.33541812,144.13,144.03,27.66479]
[1641696503449,42.33541812,144.13,144.04,6.94034771]
[1641696504150,42.33541812,144.13,144.03,27.66479]
[1641696504352,27.66479,144.13,144.04,10.38106831]
[1641696505149,42.33541812,144.13,144.03,27.66479]
[1641696505351,14.67062812,144.13,144.08,10.93866223]
[1641696505551,14.67062812,144.13,144.12,27.66479]
[1641696505751,2.812e-05,144.13,144.12,27.66479]
[1641696506152,65.8636,144.2,144.12,27.66479]
[1641696506153,2.812e-05,144.17,144.12,27.66479]
[1641696506853,65.8636,144.2,144.12,27.66479]
[1641696513657,65.8636,144.2,144.1,27.66479]
[1641696513860,69.8636,144.2,144.05,6.93986606]
[1641696514058,4.0,144.17,144.03,73.67857031]
[1641696514258,4.0,144.16,144.03,73.67857031]
[1641696514559,4.0,144.15,144.0,76.54517498]
[1641696515161,4.0,144.14,144.0,76.54517498]
[1641696515362,64.9566,144.13,144.0,76.54517498]
[1641696515560,92.62139,144.13,144.03,27.66479]
[1641696515759,96.62139,144.13,144.03,27.66479]
[1641696515959,4.0,144.12,144.03,27.66479]
[1641696516360,96.62139,144.13,144.03,27.66479]
[1641696516761,4.0,144.12,144.03,27.66479]
[1641696517662,27.66479,144.1,144.03,27.66479]
[1641696518061,27.66479,144.1,144.0,6.94227498]
[1641696519464,92.62139,144.13,144.0,6.94227498]
[1641696519764,92.62139,144.13,144.02,27.66479]
[1641696519963,92.62139,144.13,144.02,34.60610121]
[1641696520664,96.62139,144.13,144.02,34.60610121]
[1641696520864,92.62139,144.13,144.02,34.60610121]
[1641696521266,96.62139,144.13,144.02,34.60610121]
[1641696521565,92.62139,144.13,144.02,34.60610121]
[1641696521766,27.66479,144.09,144.02,6.94131121]
[1641696522568,31.66479,144.09,144.02,6.94131121]
[1641696522768,27.66479,144.09,143.98,94.32369]
[1641696522966,31.66479,144.09,143.98,27.66479]
[1641696523167,4.0,144.06,143.98,27.66479]
[1641696523465,4.0,144.04,143.92,74.06703274]
[1641696523669,27.66479,144.02,143.92,101.73182274]
[1641696523865,27.66479,144.02,143.99,2.6614994]
[1641696525167,4.0,144.01,143.93,13.02742367]
[1641696525369,4.0,144.0,143.93,13.02742367]
[1641696525866,27.66479,144.02,143.93,13.02742367]
[1641696525867,27.66479,143.95,143.93,13.02742367]
[1641696526067,27.66479,143.95,143.91,2.6614994]
[1641696527167,27.66479,143.95,143.9,2.6614994]
[1641696527667,27.66479,143.97,143.9,2.6614994]
[1641696527870,27.66479,144.0,143.9,2.6614994]
[1641696528870,31.66479,144.0,143.9,2.6614994]
[1641696529771,27.66479,143.97,143.9,2.6614994]
[1641696531375,66.8879,143.99,143.9,2.6614994]
[1641696531573,27.66479,144.0,143.9,2.6614994]
[1641696531574,27.66479,144.0,143.9,13.60859725]
[1641696531774,27.66479,144.03,143.93,27.66479]
[1641696532176,27.66479,144.03,143.94,6.94540908]
[1641696532373,65.7472,144.05,143.94,10.94540908]
[1641696532573,65.7472,144.05,143.94,4.0]
[1641696532774,65.7472,144.05,143.97,6.94396222]
[1641696533975,4.0,143.98,143.82,94.735]
[1641696534174,4.0,143.98,143.82,224.6253]
[1641696534375,4.0,143.98,143.82,135.6253]
[1641696534977,4.0,143.99,143.84,6.94999479]
[1641696535177,68.7147,143.99,143.87,6.94878744]
[1641696535379,68.7147,143.99,143.9,6.94733917]
[1641696535778,68.7147,143.99,143.93,6.94589151]
[1641696535977,65.7472,144.05,143.93,10.94589151]
[1641696536578,65.7472,144.05,143.93,6.94589151]
[1641696536778,65.7472,144.05,143.93,10.94589151]
[1641696536978,65.7472,144.05,143.93,6.94589151]
[1641696537379,27.66479,144.06,143.98,6.94348007]
[1641696537779,27.66479,144.06,143.99,27.66479]
[1641696538379,97.45219,144.11,143.99,27.66479]
[1641696538580,97.45219,144.11,144.0,6.94227498]
[1641696538978,97.45219,144.11,144.0,10.94227498]
[1641696539179,27.66479,144.11,144.0,6.94227498]
[1641696542683,27.66479,144.11,144.01,2.65565833]
[1641696543383,27.66479,144.11,144.03,4.0]
[1641696543583,27.66479,144.11,144.04,4.0]
[1641696543785,93.56279,144.14,144.05,31.66479]
[1641696543984,93.56279,144.14,144.07,4.0]
[1641696544185,14.62296726,144.15,144.05,34.60489688]
[1641696544383,14.62296726,144.15,144.05,38.60489688]
[1641696544884,27.66479,144.17,144.08,6.93866223]
[1641696545283,27.66479,144.17,144.06,2.65565833]
[1641696545484,4.0,144.12,144.06,2.65565833]
[1641696545784,27.66479,144.1,144.02,4.0]
[1641696545984,25.56379669,144.19,144.03,6.94082943]
[1641696546185,4.0,144.18,144.03,6.94082943]
[1641696546386,4.0,144.16,144.03,6.94082943]
[1641696546587,25.56379669,144.19,144.03,6.94082943]
[1641696546784,4.0,144.17,144.03,6.94082943]
[1641696546984,4.0,144.16,144.03,6.94082943]
[1641696547284,16.85699528,144.18,144.03,6.94082943]
[1641696547484,2.23402802,144.15,144.03,6.94082943]
[1641696547783,29.89881802,144.15,144.06,27.66479]
[1641696548385,27.66479,144.15,144.04,27.66479]
[1641696548585,31.66479,144.15,144.04,27.66479]
[1641696548785,27.66479,144.15,144.04,27.66479]
[1641696551087,4.0,144.14,144.04,27.66479]
[1641696551487,4.0,144.13,144.04,27.66479]
[1641696551690,4.0,144.14,144.04,27.66479]
[1641696551888,27.66479,144.12,144.04,27.66479]
[1641696553893,27.66479,144.12,144.03,6.94082943]
[1641696554095,27.66479,144.12,144.02,27.66479]
[1641696554297,31.66479,144.12,144.02,27.66479]
[1641696554595,27.66479,144.12,144.02,27.66479]
[1641696555495,27.66479,144.12,144.02,31.66479]
[1641696555795,64.7198,144.14,144.03,4.0]
[1641696555996,64.7198,144.14,144.02,55.32958]
[1641696556396,64.7198,144.14,144.04,6.94034771]
[1641696556596,24.82296726,144.18,144.04,6.94034771]
[1641696556797,24.82296726,144.18,144.02,55.32958]
[1641696556798,14.62296726,144.18,144.02,55.32958]
[1641696556997,14.62296726,144.18,144.1,6.93769946]
[1641696557399,14.62296726,144.19,144.1,6.93769946]
[1641696557597,18.62296726,144.19,144.1,6.93769946]
[1641696557798,27.66479,144.16,144.07,6.93914371]
[1641696561402,27.66479,144.18,144.09,6.93818081]
[1641696561602,27.66479,144.18,144.12,6.93673696]
[1641696561804,81.38826726,144.21,144.12,6.93673696]
[1641696561805,109.05305726,144.21,144.12,6.93673696]
[1641696562603,94.43009,144.21,144.12,6.93673696]
[1641696564405,27.66479,144.21,144.12,6.93673696]
[1641696565204,69.8653,144.22,144.14,6.93553421]
[1641696565903,69.8653,144.22,144.14,34.60032421]
[1641696566104,27.66479,144.23,144.14,34.60032421]
[1641696567506,4.0,144.2,144.11,6.93721818]
[1641696567707,4.0,144.19,144.08,6.93866223]
[1641696567906,27.66479,144.15,144.06,27.66479]
[1641696568509,91.94019,144.17,144.06,34.60417448]
[1641696568707,64.2754,144.17,144.12,6.93649638]
[1641696568907,14.62296726,144.22,144.12,6.93649638]
[1641696569307,4.0,144.22,144.1,6.93769946]
[1641696569910,27.66479,144.2,144.11,27.66479]
[1641696570407,27.66479,144.2,144.1,6.93769946]
[1641696570607,27.66479,144.2,144.11,6.93697756]
[1641696570808,2.23686225,144.21,144.11,6.93697756]
[1641696571010,2.23686225,144.21,144.06,27.66479]
[1641696571011,42.28775726,144.22,144.1,4.0]
[1641696571208,14.62296726,144.22,144.13,6.93601526]
[1641696571608,14.62296726,144.22,144.13,10.93601526]
[1641696571807,14.62296726,144.22,144.16,6.93457231]
[1641696572009,14.62296726,144.22,144.19,27.66479]
[1641696572208,68.9247,144.24,144.19,27.66479]
[1641696572409,14.62296726,144.26,144.19,27.66479]
[1641696572610,4.0,144.25,144.16,6.93457231]
[1641696572808,4.0,144.22,144.09,6.93818081]
[1641696573111,10.93986606,144.21,144.06,69.9344]
[1641696573309,65.7172,144.2,144.05,73.61746606]
[1641696573708,65.7172,144.2,144.08,6.93842151]
[1641696573909,27.66479,144.18,144.1,34.60248946]
[1641696575810,27.66479,144.18,144.1,27.66479]
[1641696576412,4.0,144.17,144.1,27.66479]
[1641696576912,4.0,144.16,144.06,6.93938448]
[1641696577413,4.0,144.15,144.06,6.93938448]
[1641696577813,4.0,144.14,144.03,6.94107031]
[1641696578018,27.66479,144.12,144.03,6.94107031]
[1641696578914,27.66479,144.12,144.04,2.65849016]
[1641696581719,27.66479,144.12,144.05,4.0]
[1641696581920,27.66479,144.12,144.09,6.93794013]
[1641696583322,27.66479,144.12,144.1,2.65870674]
[1641696585021,14.62296726,144.18,144.08,6.93842151]
[1641696585221,14.62296726,144.18,144.09,4.0]
[1641696585424,14.62296726,144.18,144.08,10.93842151]
[1641696585823,2.24103323,144.19,144.1,2.65870674]
[1641696586024,2.24103323,144.19,144.11,27.66479]
[1641696588129,2.24103323,144.19,144.06,73.65838448]
[1641696588330,6.24103323,144.19,144.06,73.65838448]
[1641696588630,4.0,144.17,144.06,6.93938448]
[1641696589030,4.0,144.15,144.06,6.93938448]
[1641696589331,4.0,144.15,144.07,2.66248085]
[1641696590133,31.66479,144.14,144.07,2.66248085]
[1641696590833,29.90582323,144.14,144.04,30.32727085]
[1641696591237,33.90582323,144.14,144.04,30.32727085]
[1641696591633,31.66479,144.14,144.04,30.32727085]
[1641696591834,4.0,144.13,144.05,2.66248085]
[1641696592235,27.66479,144.1,144.05,2.66248085]
[1641696592734,27.66479,144.1,144.03,2.66248085]
[1641696594737,4.0,144.08,144.03,8.085e-05]
[1641696594943,4.0,144.08,143.98,27.66479]
[1641696594944,4.0,144.07,143.98,27.66479]
[1641696595137,34.61019908,144.1,143.98,27.66479]
[1641696595337,4.0,144.07,143.98,27.66479]
[1641696595536,4.0,144.06,143.98,27.66479]
[1641696596142,27.66479,144.03,143.98,27.66479]
[1641696596339,31.66479,144.03,143.98,27.66479]
[1641696596739,27.66479,144.03,143.98,27.66479]
[1641696598942,14.62296726,144.07,143.98,27.66479]
[1641696599143,14.62296726,144.07,143.99,6.94299799]
[1641696599342,14.62296726,144.07,143.99,10.94299799]
[1641696599541,14.62296726,144.07,143.99,6.94299799]
[1641696599941,14.62296726,144.07,143.98,27.66479]
[1641696600145,42.28775726,144.07,143.98,27.66479]
[1641696600741,4.0,144.05,143.98,27.66479]
[1641696601341,4.0,144.03,143.98,27.66479]
[1641696601641,4.0,144.04,143.98,27.66479]
[1641696602242,31.66479,144.03,143.98,27.66479]
[1641696603745,27.66479,144.03,143.98,27.66479]
[1641696603943,4.0,144.02,143.98,27.66479]
[1641696604145,27.66479,144.0,143.93,27.66479]
[1641696604346,68.6085,144.02,143.93,27.66479]
[1641696604547,4.0,144.0,143.89,27.66479]
[1641696604750,75.55752887,144.02,143.89,27.66479]
[1641696605048,79.55752887,144.02,143.89,27.66479]
[1641696605250,75.55752887,144.02,143.89,27.66479]
[1641696605449,79.55752887,144.02,143.89,27.66479]
[1641696605750,75.55752887,144.02,143.89,27.66479]
[1641696606150,27.66479,143.97,143.89,27.66479]
[1641696606352,4.0,143.96,143.89,27.66479]
[1641696606751,27.66479,143.97,143.89,27.66479]
[1641696606752,4.0,143.94,143.89,27.66479]
[1641696606950,4.0,143.93,143.89,27.66479]
[1641696607851,27.66479,143.97,143.89,27.66479]
[1641696608051,4.0,143.93,143.89,27.66479]
[1641696608654,4.0,143.92,143.79,135.63471075]
[1641696608853,4.0,143.92,143.79,6.95241075]
[1641696609052,4.0,143.93,143.79,6.95241075]
[1641696609553,4.0,143.92,143.79,6.95241075]
[1641696609753,4.0,143.93,143.79,6.95241075]
[1641696610354,4.0,143.93,143.84,27.66479]
[1641696610754,95.64779,143.94,143.82,27.66479]
[1641696610955,4.0,143.93,143.82,27.66479]
[1641696612053,4.0,143.9,143.82,27.66479]
[1641696612257,4.0,143.92,143.82,27.66479]
[1641696612454,27.66479,143.9,143.82,27.66479]
[1641696612855,31.66479,143.9,143.82,27.66479]
[1641696613155,4.0,143.88,143.82,27.66479]
[1641696613457,6.95555401,143.89,143.82,27.66479]
[1641696613655,4.0,143.87,143.82,27.66479]
[1641696614956,10.95555401,143.89,143.82,27.66479]
[1641696615156,4.0,143.88,143.82,27.66479]
[1641696616255,4.0,143.87,143.82,27.66479]
[1641696617257,6.95555401,143.89,143.82,27.66479]
[1641696617658,27.66479,143.9,143.82,27.66479]
[1641696617858,31.66479,143.9,143.82,27.66479]
[1641696618059,4.0,143.89,143.82,27.66479]
[1641696618259,4.0,143.88,143.82,27.66479]
[1641696618460,6.95555401,143.89,143.82,27.66479]
[1641696619060,4.0,143.88,143.82,27.66479]
[1641696619661,10.95555401,143.89,143.82,27.66479]
[1641696619860,4.0,143.88,143.82,27.66479]
[1641696620661,10.95555401,143.89,143.82,27.66479]
[1641696621063,4.0,143.88,143.82,27.66479]
[1641696621263,4.0,143.87,143.82,27.66479]
[1641696621462,4.0,143.88,143.82,27.66479]
[1641696622862,27.66479,143.9,143.82,27.66479]
[1641696623264,27.66479,143.94,143.83,6.9507194]
[1641696623464,81.65286726,143.96,143.85,4.0]
[1641696623766,81.65286726,143.96,143.85,6.94975328]
[1641696624063,85.65286726,143.96,143.85,6.94975328]
[1641696624467,71.0299,143.96,143.85,6.94975328]
[1641696624864,98.69469,143.96,143.86,27.66479]
[1641696625465,94.69469,143.96,143.86,27.66479]
[1641696625665,79.5634,143.98,143.87,4.0]
[1641696625867,146.6715,144.0,143.89,4.0]
[1641696626065,136.3515,144.0,143.89,4.0]
[1641696626667,136.3515,144.0,143.88,4.0]
[1641696626868,136.3515,144.0,143.93,27.66479]
[1641696627067,27.66479,144.01,143.93,27.66479]
[1641696629970,10.22,144.02,143.93,27.66479]
[1641696630171,25.14296726,144.06,143.94,10.94540908]
[1641696630370,14.62296726,144.06,143.95,4.0]
[1641696630770,14.62296726,144.06,144.0,27.66479]
[1641696631173,27.66479,144.1,144.0,27.66479]
[1641696631572,14.62296726,144.11,144.03,4.0]
[1641696631973,14.62296726,144.11,144.03,10.94082943]
[1641696632372,14.62296726,144.15,144.03,10.94082943]
[1641696632574,14.62296726,144.15,144.01,6.94203402]
[1641696632873,27.66479,144.14,144.04,27.66479]
[1641696633475,4.0,144.13,144.04,27.66479]
[1641696634775,27.66479,144.14,144.04,27.66479]
[1641696634975,27.66479,144.16,144.04,27.66479]
[1641696635177,14.62296726,144.17,144.07,4.0]
[1641696635377,14.62296726,144.17,144.08,6.93866223]
[1641696636377,69.3911,144.19,144.08,10.93866223]
[1641696636878,69.3911,144.19,144.12,27.66479]
[1641696637077,27.66479,144.2,144.12,27.66479]
[1641696638378,27.66479,144.2,144.09,27.66479]
[1641696638580,4.0,144.17,144.09,27.66479]
[1641696638778,31.66479,144.2,144.09,27.66479]
[1641696639179,4.0,144.19,144.09,27.66479]
[1641696640080,92.69779,144.22,144.09,31.66479]
[1641696640283,92.69779,144.22,144.1,6.93745881]
[1641696640482,69.4427,144.23,144.12,10.93673696]
[1641696640680,69.4427,144.23,144.12,6.93673696]
[1641696640882,69.4427,144.23,144.16,27.66479]
[1641696641080,14.3,144.25,144.16,27.66479]
[1641696641482,4.0,144.24,144.16,27.66479]
[1641696641680,10.3,144.25,144.16,27.66479]
[1641696642482,4.0,144.24,144.16,27.66479]
[1641696642680,10.93842151,144.24,144.14,27.66479]
[1641696642882,27.66479,144.19,144.14,27.66479]
[1641696643082,27.66479,144.19,144.1,27.66479]
[1641696644287,66.6856,144.23,144.1,27.66479]
[1641696645187,27.66479,144.22,144.13,27.66479]
[1641696646988,27.66479,144.22,144.1,27.66479]
[1641696647188,4.0,144.17,144.07,27.66479]
[1641696647590,4.0,144.16,144.05,27.66479]
[1641696647790,10.94179307,144.17,144.05,27.66479]
[1641696647990,6.94179307,144.17,144.06,4.0]
[1641696648190,27.66479,144.19,144.07,4.0]
[1641696648390,27.66479,144.19,144.05,38.60465606]
[1641696648591,4.0,144.18,144.05,34.60465606]
[1641696649193,27.66479,144.16,144.08,27.66479]
[1641696649390,4.0,144.18,144.08,27.66479]
[1641696649591,14.62296726,144.26,144.12,10.93649638]
[1641696649991,14.62296726,144.26,144.12,6.93649638]
[1641696650193,24.90296726,144.27,144.12,10.93649638]
[1641696650394,4.0,144.26,144.12,10.93649638]
[1641696650896,4.0,144.24,144.12,6.93649638]
[1641696651096,27.66479,144.21,144.09,6.93818081]
[1641696653097,27.66479,144.21,144.12,27.66479]
[1641696653699,31.66479,144.21,144.12,27.66479]
[1641696656199,2.22815293,144.2,144.12,27.66479]
[1641696658201,2.22815293,144.2,144.09,6.93818081]
[1641696659104,16.85112019,144.2,144.09,10.93818081]
[1641696659304,16.85112019,144.2,144.12,27.66479]
[1641696660004,14.62296726,144.19,144.12,27.66479]
[1641696660205,14.62296726,144.19,144.09,6.93818081]
[1641696660405,14.62296726,144.19,144.08,27.66479]
[1641696661009,14.62296726,144.18,144.08,27.66479]
[1641696661409,42.28775726,144.18,144.08,27.66479]
[1641696662012,14.62296726,144.16,144.08,27.66479]
[1641696664312,18.62296726,144.16,144.08,27.66479]
[1641696665417,16.85112019,144.15,144.08,27.66479]
[1641696666314,16.85112019,144.15,144.06,27.66479]
[1641696666814,14.62296726,144.14,144.06,27.66479]
[1641696667415,27.66479,144.13,144.06,27.66479]
[1641696667615,14.62296726,144.12,144.06,27.66479]
[1641696668416,16.85112019,144.12,144.06,27.66479]
[1641696669316,16.85112019,144.12,144.03,6.94082943]
[1641696669818,20.85112019,144.12,144.03,6.94082943]
[1641696670019,20.85112019,144.12,144.04,2.6658854]
[1641696670723,16.85112019,144.12,144.04,2.6658854]
[1641696670920,2.22815293,144.11,144.04,2.6658854]
[1641696671721,2.22815293,144.11,144.02,27.66479]
[1641696671923,4.0,144.1,144.02,27.66479]
[1641696672223,4.0,144.11,144.02,27.66479]
[1641696672425,16.85112019,144.12,144.02,27.66479]
[1641696672824,16.85112019,144.1,144.02,27.66479]
[1641696673627,18.62296726,144.11,144.0,27.66479]
[1641696674428,16.85112019,144.1,144.0,27.66479]
[1641696675327,2.22815293,144.1,144.03,4.0]
[1641696675528,2.22815293,144.1,144.04,27.66479]
[1641696676332,2.22815293,144.12,144.04,27.66479]
[1641696680832,2.22815293,144.12,144.01,6.94179307]
[1641696681033,70.10465293,144.12,144.01,6.94179307]
[1641696681235,84.72762019,144.12,144.01,6.94179307]
[1641696681633,27.66479,144.1,144.01,6.94179307]
[1641696682333,27.66479,144.1,144.0,27.66479]
[1641696683038,2.22815293,144.09,144.0,27.66479]
[1641696686742,2.22815293,144.09,143.95,142.79202673]
[1641696686942,75.00275293,144.09,143.95,135.8471]
[1641696687143,6.94661526,144.07,143.91,6.94661526]
[1641696687344,69.375,144.06,143.91,6.94661526]
[1641696687744,73.375,144.06,143.91,6.94661526]
[1641696687946,27.66479,144.02,143.94,27.66479]
[1641696688548,27.66479,144.02,143.92,30.32847541]
[1641696689148,27.66479,144.02,143.92,27.66479]
[1641696689348,2.22815293,144.01,143.92,27.66479]
[1641696689751,2.22815293,144.01,143.93,4.0]
[1641696689951,2.22815293,144.01,143.96,27.66479]
[1641696690151,14.62296726,144.04,143.96,27.66479]
[1641696690950,18.62296726,144.04,143.92,27.66479]
[1641696691153,2.24236013,144.04,143.92,27.66479]
[1641696691852,27.66479,144.02,143.93,2.66045575]
[1641696694253,27.66479,144.02,143.92,27.66479]
[1641696695053,31.66479,144.02,143.92,27.66479]
[1641696695754,2.24063988,144.01,143.92,27.66479]
[1641696695954,27.66479,143.98,143.92,27.66479]
[1641696696854,27.66479,143.98,143.91,27.66479]
[1641696697055,31.66479,143.98,143.87,6.94878744]
[1641696697253,31.66479,143.98,143.81,93.0]
[1641696697454,31.66479,143.98,143.83,6.9507194]
[1641696697654,4.0,143.97,143.83,6.9507194]
[1641696697854,4.0,143.96,143.83,6.9507194]
[1641696698055,27.66479,143.94,143.85,31.66479]
[1641696698256,27.66479,143.94,143.85,27.66479]
[1641696698955,66.732,143.95,143.85,27.66479]
[1641696699355,66.732,143.95,143.85,34.6143018]
[1641696699555,66.732,143.95,143.86,2.65990673]
[1641696700156,27.66479,143.98,143.88,27.66479]
[1641696700956,93.81409,143.98,143.88,27.66479]
[1641696701757,6.95241075,143.95,143.89,2.65990673]
[1641696701959,4.0,143.96,143.79,58.71008427]
[1641696702161,27.66479,143.85,143.79,58.71008427]
[1641696702661,27.66479,143.85,143.79,27.71008427]
[1641696702859,10.95797384,143.84,143.79,27.71008427]
[1641696703059,10.95797384,143.84,143.75,27.66479]
[1641696703258,6.95797384,143.84,143.7,27.71008427]
[1641696703663,10.95797384,143.84,143.7,27.71008427]
[1641696703960,6.95918438,143.81,143.7,27.71008427]
[1641696704162,27.66479,143.77,143.7,27.71008427]
[1641696704361,27.66479,143.77,143.69,27.66479]
[1641696704562,27.66479,143.77,143.69,38.02128713]
[1641696705165,27.66479,143.77,143.69,10.35649713]
[1641696705463,31.66479,143.77,143.69,10.35649713]
[1641696705662,27.66479,143.77,143.67,27.66479]
[1641696705864,31.66479,143.77,143.67,27.66479]
[1641696706064,27.66479,143.72,143.64,27.66479]
[1641696706463,31.66479,143.72,143.59,6.96233377]
[1641696706666,27.66479,143.72,143.59,6.96233377]
[1641696706866,27.66479,143.72,143.64,10.35787535]
[1641696707668,67.3479,143.76,143.64,10.35787535]
[1641696707868,27.66479,143.77,143.64,10.35787535]
[1641696708069,14.62296726,143.8,143.74,27.66479]
[1641696708269,14.62296726,143.8,143.72,27.66479]
[1641696708872,18.62296726,143.8,143.66,70.2507]
[1641696709072,14.62296726,143.8,143.67,4.0]
[1641696709472,27.66479,143.81,143.68,4.0]
[1641696709671,27.66479,143.81,143.67,4.0]
[1641696710074,27.66479,143.81,143.7,27.66479]
[1641696713174,65.7021,143.83,143.7,27.66479]
[1641696714176,27.66479,143.79,143.7,27.66479]
[1641696714376,27.66479,143.79,143.68,27.66479]
[1641696715177,27.66479,143.79,143.69,4.0]
[1641696715378,27.66479,143.79,143.69,6.95724771]